bitfinex/quotes_BTCUSD_20241001
["timestamp","ask_amount","ask_price","bid_price","bid_amount"]
[1727760342197,0.16531119,63858.0,63857.0,0.43964321]
[1727760342639,0.16431119,63858.0,63857.0,0.42564321]
[1727760343095,0.16531119,63858.0,63857.0,0.43364321]
[1727760343357,0.07401119,63858.0,63857.0,0.43364321]
[1727760343564,0.002648,63858.0,63857.0,0.42564321]
[1727760343804,0.002648,63858.0,63857.0,0.41164321]
[1727760343805,0.04854474,63858.0,63857.0,0.41164321]
[1727760344017,0.001648,63858.0,63857.0,0.42464321]
[1727760344449,0.001648,63858.0,63857.0,0.41764321]
[1727760344675,0.001648,63858.0,63857.0,0.42364321]
[1727760344885,0.18702614,63858.0,63857.0,0.40350565]
[1727760345114,0.26815968,63858.0,63857.0,0.40350565]
[1727760345336,0.36192802,63858.0,63857.0,0.40350565]
[1727760345562,0.36192802,63858.0,63857.0,0.39150565]
[1727760345784,0.36292802,63858.0,63857.0,0.39750565]
[1727760346689,0.26915968,63858.0,63857.0,0.17276939]
[1727760346942,0.42461748,63858.0,63857.0,0.17776939]
[1727760347151,0.42461748,63858.0,63857.0,0.17376939]
[1727760347368,0.42461748,63858.0,63857.0,0.02217039]
[1727760347583,0.42461748,63858.0,63857.0,0.02317039]
[1727760348018,0.42389415,63858.0,63857.0,0.02317039]
[1727760348672,0.42389415,63858.0,63857.0,0.17976939]
[1727760349592,0.42389415,63858.0,63857.0,0.02317039]
[1727760352758,0.42389415,63858.0,63857.0,0.17976939]
[1727760352980,0.42317247,63858.0,63857.0,0.17976939]
[1727760354295,0.54016044,63858.0,63857.0,0.17976939]
[1727760354539,0.51676526,63858.0,63857.0,0.17976939]
[1727760354759,0.51676716,63858.0,63857.0,0.17976939]
[1727760356111,0.51714546,63858.0,63857.0,0.17976939]
[1727760356340,0.42355077,63858.0,63857.0,0.17976939]
[1727760356825,0.2495058,63858.0,63857.0,0.17976939]
[1727760357080,0.31969715,63858.0,63857.0,0.17976939]
[1727760357278,0.51713757,63858.0,63857.0,0.17976939]
[1727760357562,0.42573757,63858.0,63857.0,0.17976939]
[1727760357811,0.42567809,63858.0,63857.0,0.17976939]
[1727760358286,0.2283005,63858.0,63857.0,0.17976939]
[1727760358744,0.22830349,63858.0,63857.0,0.17976939]
[1727760358970,0.33213636,63858.0,63857.0,0.17976939]
[1727760359707,0.1581058,63858.0,63857.0,0.17976939]
[1727760359950,0.42568637,63858.0,63857.0,0.17976939]
[1727760360154,0.33209322,63858.0,63857.0,0.17976939]
[1727760360399,0.42568131,63858.0,63857.0,0.17976939]
[1727760360605,0.1581058,63858.0,63857.0,0.17976939]
[1727760362028,0.001648,63858.0,63857.0,0.17976939]
[1727760363443,0.04845357,63858.0,63857.0,0.17976939]
[1727760364356,0.001648,63858.0,63857.0,0.17976939]
[1727760364814,0.04845562,63858.0,63857.0,0.17976939]
[1727760365069,0.001648,63858.0,63857.0,0.17976939]
[1727760369143,0.16685495,63858.0,63857.0,0.17976939]
[1727760369622,0.096648,63858.0,63857.0,0.17976939]
[1727760370349,0.16687169,63858.0,63857.0,0.17976939]
[1727760372038,0.07187169,63858.0,63857.0,0.17976939]
[1727760374178,0.001648,63858.0,63857.0,0.17976939]
[1727760375253,0.26973059,63858.0,63857.0,0.17976939]
[1727760377335,0.17613744,63858.0,63857.0,0.17976939]
[1727760379428,0.29312887,63858.0,63857.0,0.17976939]
[1727760380986,0.2933732,63858.0,63857.0,0.17976939]
[1727760381402,0.2933732,63858.0,63857.0,0.29850565]
[1727760384356,0.17621355,63858.0,63857.0,0.29850565]
[1727760385995,0.17624958,63858.0,63857.0,0.29850565]
[1727760389364,0.17624958,63858.0,63857.0,0.17976939]
[1727760390222,0.31689545,63858.0,63857.0,0.17976939]
[1727760390867,0.17624958,63858.0,63857.0,0.17976939]
[1727760391108,0.14236296,63858.0,63857.0,0.17976939]
[1727760391330,0.31679035,63858.0,63857.0,0.17976939]
[1727760392382,0.31679035,63858.0,63857.0,0.159422]
[1727760392596,0.31679035,63858.0,63857.0,0.17997205]
[1727760394571,0.47324815,63858.0,63857.0,0.17997205]
[1727760394779,0.47324815,63858.0,63857.0,0.02337305]
[1727760394780,0.33253319,63858.0,63857.0,0.02337305]
[1727760395250,0.33253319,63858.0,63857.0,0.17997205]
[1727760401020,0.33253319,63858.0,63857.0,0.02337305]
[1727760401276,0.33253319,63858.0,63857.0,0.17997205]
[1727760403720,0.33253319,63858.0,63857.0,0.02337305]
[1727760405701,0.33253319,63858.0,63857.0,0.17997205]
[1727760405939,0.33229815,63858.0,63857.0,0.17997205]
[1727760408533,0.33229815,63858.0,63857.0,0.35697205]
[1727760408534,0.31660363,63858.0,63857.0,0.35697205]
[1727760408769,0.17584035,63858.0,63857.0,0.35697205]
[1727760410808,0.17630456,63858.0,63857.0,0.35697205]
[1727760412753,0.17630456,63858.0,63857.0,0.25807205]
[1727760415784,0.33276236,63858.0,63857.0,0.02337305]
[1727760416029,0.47353146,63858.0,63857.0,0.02337305]
[1727760416273,0.33276236,63858.0,63857.0,0.02337305]
[1727760418232,0.33276236,63858.0,63857.0,0.02432076]
[1727760419265,0.33276236,63858.0,63857.0,0.02332076]
[1727760419468,0.49212759,63858.0,63857.0,0.02232076]
[1727760419690,0.49212759,63858.0,63857.0,0.000823]
[1727760419892,0.66032759,63858.0,63857.0,0.000823]
[1727760420098,0.65755936,63858.0,63857.0,0.000823]
[1727760420299,0.66155936,63858.0,63857.0,0.000823]
[1727760420577,0.66053949,63858.0,63857.0,0.000823]
[1727760421430,0.66153949,63858.0,63857.0,0.000823]
[1727760421640,0.81698627,63858.0,63857.0,0.000823]
[1727760421855,0.66053949,63858.0,63857.0,0.000823]
[1727760422072,0.66353949,63858.0,63857.0,0.001823]
[1727760422281,0.65953949,63858.0,63857.0,0.001823]
[1727760422928,0.66553949,63858.0,63857.0,0.002823]
[1727760423540,0.65953949,63858.0,63857.0,0.001823]
[1727760423790,0.66753949,63858.0,63857.0,0.002823]
[1727760425515,0.82398627,63858.0,63857.0,0.002823]
[1727760425744,0.57628927,63858.0,63856.0,0.00082089]
[1727760425928,0.69902975,63857.0,63856.0,0.00082089]
[1727760426187,0.94212112,63857.0,63856.0,0.00082089]
[1727760427065,0.94912112,63857.0,63856.0,0.00182089]
[1727760427298,1.1055679,63857.0,63856.0,0.00182089]
[1727760427991,1.20289905,63857.0,63856.0,0.00182089]
[1727760428201,1.20289905,63857.0,63856.0,0.00282089]
[1727760428202,1.05192112,63857.0,63856.0,0.00282089]
[1727760428440,1.05192112,63857.0,63856.0,0.0010085]
[1727760428860,0.46744826,63852.0,63851.0,0.000823]
[1727760428980,0.79754275,63852.0,63851.0,0.000823]
[1727760429654,1.04063412,63852.0,63851.0,0.000823]
[1727760430289,1.1970809,63852.0,63851.0,0.000823]
[1727760431184,1.1950809,63852.0,63851.0,0.000823]
[1727760431424,1.03863412,63852.0,63851.0,0.000823]
[1727760431639,1.05263412,63852.0,63851.0,0.000823]
[1727760431862,1.05763412,63852.0,63851.0,0.001823]
[1727760432316,1.03863412,63852.0,63851.0,0.000823]
[1727760432530,1.2150809,63852.0,63851.0,0.001823]
[1727760432938,0.93989786,63852.0,63851.0,0.001823]
[1727760433146,1.09784975,63852.0,63851.0,0.001823]
[1727760435508,0.93989786,63852.0,63851.0,0.001823]
[1727760435748,0.156626,63846.0,63845.0,0.0490333]
[1727760436080,0.33009449,63846.0,63845.0,0.00437527]
[1727760436474,0.156629,63845.0,63844.0,0.0001077]
[1727760436714,0.48672349,63845.0,63844.0,0.0001077]
[1727760438240,0.73399064,63845.0,63844.0,0.0001077]
[1727760438455,0.87280221,63845.0,63844.0,0.0001077]
[1727760438675,0.74344336,63845.0,63844.0,0.0001077]
[1727760438888,0.98692773,63845.0,63844.0,0.0001077]
[1727760439317,0.97592773,63845.0,63844.0,0.0001077]
[1727760439528,0.98992773,63845.0,63844.0,0.0011077]
[1727760439976,0.89592773,63845.0,63844.0,0.0001077]
[1727760440185,0.90992773,63845.0,63844.0,0.0011077]
[1727760440399,1.0502314,63845.0,63844.0,0.0011077]
[1727760440620,0.49885088,63845.0,63844.0,0.0011077]
[1727760441133,0.45474721,63845.0,63844.0,0.01772224]
[1727760441351,0.45474721,63845.0,63841.0,0.0004]
[1727760441352,0.173636,63842.0,63841.0,0.0004]
[1727760441565,0.62091947,63842.0,63841.0,0.0004]
[1727760442220,0.77736625,63842.0,63841.0,0.0004]
[1727760442459,1.02054474,63842.0,63841.0,0.0004]
[1727760442692,0.78736625,63842.0,63841.0,0.0004]
[1727760442909,0.171641,63840.0,63839.0,0.05787801]
[1727760443130,0.50218821,63840.0,63839.0,0.05787801]
[1727760443586,0.75503499,63840.0,63839.0,0.05787801]
[1727760443844,0.99958284,63840.0,63839.0,0.05787801]
[1727760445410,0.99758284,63840.0,63839.0,0.05787801]
[1727760445851,0.92119864,63840.0,63839.0,6.73e-05]
[1727760446061,0.90919864,63840.0,63839.0,6.73e-05]
[1727760446308,0.76903499,63840.0,63839.0,6.73e-05]
[1727760446563,0.78303499,63840.0,63839.0,6.73e-05]
[1727760447213,0.78503499,63840.0,63839.0,6.73e-05]
[1727760449203,0.92519864,63840.0,63839.0,6.73e-05]
[1727760449647,1.02098963,63840.0,63839.0,6.73e-05]
[1727760451029,1.02098963,63840.0,63839.0,0.0008903]
[1727760451483,1.01898963,63840.0,63839.0,8.7e-06]
[1727760451697,0.84854285,63840.0,63839.0,8.7e-06]
[1727760451912,0.62335049,63840.0,63839.0,8.7e-06]
[1727760452131,0.60935049,63840.0,63839.0,8.7e-06]
[1727760452362,0.59535049,63840.0,63839.0,8.7e-06]
[1727760452605,0.60935049,63840.0,63839.0,8.7e-06]
[1727760452829,0.76579727,63840.0,63839.0,8.7e-06]
[1727760453052,1.01845485,63840.0,63839.0,8.7e-06]
[1727760453274,1.03245485,63840.0,63839.0,8.7e-06]
[1727760453739,0.79357444,63840.0,63839.0,8.7e-06]
[1727760454653,0.78157444,63840.0,63839.0,8.7e-06]
[1727760454864,0.79557444,63840.0,63839.0,8.7e-06]
[1727760455088,0.90761337,63840.0,63839.0,8.7e-06]
[1727760455802,0.156656,63834.0,63833.0,0.00103646]
[1727760456031,0.57710216,63834.0,63833.0,0.00103646]
[1727760456247,0.156668,63829.0,63828.0,0.06263683]
[1727760456477,0.35980836,63829.0,63828.0,0.06263683]
[1727760456695,0.48320964,63829.0,63828.0,0.06263683]
[1727760456905,0.3131258,63829.0,63828.0,0.06263683]
[1727760457127,0.48109897,63829.0,63828.0,0.06263683]
[1727760457376,0.4811039,63829.0,63828.0,0.06263683]
[1727760457809,0.48110805,63829.0,63828.0,0.06263683]
[1727760458262,0.57446835,63829.0,63828.0,0.06263683]
[1727760458700,0.60246835,63829.0,63828.0,0.06263683]
[1727760458915,0.74962405,63829.0,63828.0,0.06263683]
[1727760459152,0.76362405,63829.0,63828.0,0.06263683]
[1727760460440,0.61646835,63829.0,63828.0,0.06263683]
[1727760461296,0.52310805,63829.0,63828.0,0.06263683]
[1727760462693,0.52409645,63829.0,63828.0,0.06263683]
[1727760463141,0.52409645,63829.0,63828.0,0.06345983]
[1727760463291,0.6408654,63829.0,63828.0,0.06345983]
[1727760463896,0.76811714,63829.0,63828.0,0.06345983]
[1727760464573,0.6408654,63829.0,63828.0,0.06345983]
[1727760465504,0.52409645,63829.0,63828.0,0.06345983]
[1727760465749,0.52409645,63829.0,63825.0,0.000823]
[1727760465750,0.25673626,63826.0,63825.0,0.000823]
[1727760465983,0.17168,63824.0,63821.0,0.0004]
[1727760466202,0.59710845,63824.0,63821.0,0.0004]
[1727760466429,1.31229704,63824.0,63821.0,0.0004]
[1727760467164,1.31429704,63824.0,63821.0,0.0004]
[1727760467394,1.64458658,63824.0,63821.0,0.0004]
[1727760467624,1.86470407,63824.0,63821.0,0.0004]
[1727760467845,2.94694689,63824.0,63821.0,0.0004]
[1727760468068,1.51653643,63824.0,63821.0,0.0004]
[1727760468258,1.37292489,63824.0,63821.0,0.0004]
[1727760468501,1.35892489,63824.0,63821.0,0.0004]
[1727760468753,1.37292489,63824.0,63821.0,0.0004]
[1727760468986,1.33183489,63824.0,63821.0,0.0004]
[1727760469200,1.21088789,63824.0,63821.0,0.0004]
[1727760469417,1.34583489,63824.0,63821.0,0.0004]
[1727760469634,1.50228167,63824.0,63821.0,0.0004]
[1727760469858,1.51628167,63824.0,63821.0,0.0004]
[1727760470979,1.50228167,63824.0,63821.0,0.0004]
[1727760471191,1.48828167,63824.0,63821.0,0.0004]
[1727760471414,1.50228167,63824.0,63821.0,0.0004]
[1727760471634,1.51628167,63824.0,63821.0,0.0004]
[1727760472934,1.67389321,63824.0,63821.0,0.0004]
[1727760473371,1.51628167,63824.0,63821.0,0.0004]
[1727760473821,1.51628167,63824.0,63823.0,0.00130647]
[1727760474036,1.67387587,63824.0,63823.0,0.00130647]
[1727760474247,1.65987587,63824.0,63823.0,0.00130647]
[1727760474455,1.68762527,63824.0,63823.0,0.00130647]
[1727760474707,1.70162527,63824.0,63823.0,0.00130647]
[1727760474932,1.71562527,63824.0,63823.0,0.00130647]
[1727760475169,1.70162527,63824.0,63823.0,0.00130647]
[1727760475391,1.54403107,63824.0,63823.0,0.00130647]
[1727760475614,1.18166089,63824.0,63823.0,0.00213047]
[1727760475838,1.18166089,63824.0,63817.0,0.06739564]
[1727760475839,0.271695,63818.0,63817.0,0.00223863]
[1727760476071,0.59630773,63818.0,63817.0,0.00223863]
[1727760476306,0.59630773,63818.0,63817.0,0.00122188]
[1727760477159,0.75275451,63818.0,63817.0,0.00122188]
[1727760477396,0.75004388,63818.0,63817.0,0.00122188]
[1727760477852,0.5935971,63818.0,63817.0,0.00122188]
[1727760478588,0.4975971,63818.0,63817.0,0.00122188]
[1727760479014,0.59094936,63818.0,63817.0,0.00122188]
[1727760479224,0.4975971,63818.0,63817.0,0.00122188]
[1727760479432,0.5115971,63818.0,63817.0,0.00122188]
[1727760479646,0.63810242,63818.0,63817.0,0.00122188]
[1727760480077,0.005,63817.0,63814.0,0.07502188]
[1727760480262,0.07002085,63815.0,63814.0,0.07502188]
[1727760480498,0.22647865,63815.0,63814.0,0.07502188]
[1727760480710,0.1564578,63815.0,63814.0,0.07502188]
[1727760481406,0.22649169,63815.0,63814.0,0.07502188]
[1727760482049,0.25449169,63815.0,63814.0,0.07502188]
[1727760482301,0.25449169,63815.0,63814.0,0.08102188]
[1727760482523,0.24049169,63815.0,63814.0,0.08102188]
[1727760482743,0.22649169,63815.0,63814.0,0.08102188]
[1727760482960,0.24049169,63815.0,63814.0,0.08102188]
[1727760483177,0.25449169,63815.0,63814.0,0.08102188]
[1727760483396,0.44389201,63815.0,63814.0,0.08102188]
[1727760483617,0.35051349,63815.0,63814.0,0.08102188]
[1727760483852,0.45789201,63815.0,63814.0,0.08102188]
[1727760484073,0.44389201,63815.0,63814.0,0.08102188]
[1727760484962,0.60059401,63815.0,63814.0,0.08102188]
[1727760485186,0.57259401,63815.0,63814.0,0.08102188]
[1727760485441,0.50521549,63815.0,63814.0,0.08102188]
[1727760486196,0.49321549,63815.0,63814.0,0.08102188]
[1727760486432,0.61212081,63815.0,63814.0,0.08102188]
[1727760487435,0.50521549,63815.0,63814.0,0.08102188]
[1727760487930,0.50521549,63815.0,63814.0,0.08184588]
[1727760494841,0.34851349,63815.0,63814.0,0.08184588]
[1727760495088,0.64528327,63815.0,63814.0,0.08184588]
[1727760498528,0.50521549,63815.0,63814.0,0.08184588]
[1727760500467,0.3408078,63815.0,63814.0,0.08184588]
[1727760500754,0.50723427,63815.0,63814.0,0.08184588]
[1727760500981,0.35053227,63815.0,63814.0,0.08184588]
[1727760501321,0.50723427,63815.0,63814.0,0.09919125]
[1727760501781,0.50723427,63815.0,63814.0,0.08184588]
[1727760505467,0.66375421,63815.0,63814.0,0.006824]
[1727760507421,0.82192325,63815.0,63814.0,0.006824]
[1727760509480,0.66375421,63815.0,63814.0,0.006824]
[1727760509702,0.50755271,63815.0,63814.0,0.006824]
[1727760510370,0.5076082,63815.0,63814.0,0.006824]
[1727760511990,0.3509062,63815.0,63814.0,0.006824]
[1727760512207,0.53218334,63815.0,63814.0,0.006824]
[1727760512954,0.5076082,63815.0,63814.0,0.02416937]
[1727760513173,0.5076082,63815.0,63814.0,0.01149057]
[1727760513388,0.4956082,63815.0,63814.0,0.01149057]
[1727760513822,0.5076082,63815.0,63814.0,0.01149057]
[1727760514265,0.4816082,63815.0,63814.0,0.01149057]
[1727760514733,0.5066082,63815.0,63814.0,0.01149057]
[1727760515435,0.50773144,63815.0,63814.0,0.01149057]
[1727760515919,0.53230633,63815.0,63814.0,0.01149057]
[1727760516398,0.53230633,63815.0,63814.0,0.0127329]
[1727760516639,0.37560433,63815.0,63814.0,0.0127329]
[1727760516877,0.53230633,63815.0,63814.0,0.0127329]
[1727760517113,0.53230633,63815.0,63814.0,0.006824]
[1727760517608,0.53230633,63815.0,63814.0,0.02541825]
[1727760517857,0.53230633,63815.0,63814.0,0.0149271]
[1727760518091,0.37560433,63815.0,63814.0,0.02554248]
[1727760518555,0.53230633,63815.0,63814.0,0.006824]
[1727760519282,0.53230633,63815.0,63814.0,0.01743938]
[1727760519512,0.53230633,63815.0,63814.0,0.006824]
[1727760519745,0.53230633,63815.0,63814.0,0.01743938]
[1727760520030,0.50773144,63815.0,63814.0,0.006824]
[1727760520256,0.53230646,63815.0,63814.0,0.01743938]
[1727760520480,0.53230646,63815.0,63814.0,0.006824]
[1727760520720,0.53230646,63815.0,63814.0,0.02554248]
[1727760523134,0.50773144,63815.0,63814.0,0.02554248]
[1727760525971,0.53230665,63815.0,63814.0,0.02554248]
[1727760526437,0.5748461,63815.0,63814.0,0.02554248]
[1727760526679,0.53230665,63815.0,63814.0,0.02554248]
[1727760528871,0.50773144,63815.0,63814.0,0.02554248]
[1727760529339,0.50773144,63815.0,63814.0,0.006824]
[1727760529582,0.50773144,63815.0,63814.0,0.02554248]
[1727760529819,0.50773144,63815.0,63814.0,0.0149271]
[1727760530054,0.50773144,63815.0,63814.0,0.02554248]
[1727760532204,0.53230652,63815.0,63814.0,0.02554248]
[1727760534413,0.53230652,63815.0,63814.0,0.01743938]
[1727760534652,0.53230652,63815.0,63814.0,0.006824]
[1727760538966,0.50773144,63815.0,63814.0,0.006824]
[1727760541896,0.37560461,63815.0,63814.0,0.006824]
[1727760542333,0.37560461,63815.0,63814.0,0.082924]
[1727760542570,0.37560461,63815.0,63814.0,0.47697693]
[1727760542801,0.19457164,63815.0,63814.0,0.47697693]
[1727760543534,0.18357164,63815.0,63814.0,0.47697693]
[1727760543756,0.19457164,63815.0,63814.0,0.47697693]
[1727760543979,0.18057164,63815.0,63814.0,0.47697693]
[1727760544198,0.17257164,63815.0,63814.0,0.47697693]
[1727760544423,0.07504869,63815.0,63814.0,0.47697693]
[1727760544664,0.07504869,63815.0,63814.0,0.47797693]
[1727760545109,0.07204869,63815.0,63814.0,0.47797693]
[1727760545555,0.04856563,63815.0,63814.0,0.47797693]
[1727760545782,0.07313706,63815.0,63814.0,0.47807703]
[1727760546457,0.02621943,63815.0,63814.0,0.47807703]
[1727760555308,0.001648,63815.0,63814.0,0.47807703]
[1727760562153,0.02621935,63815.0,63814.0,0.47807703]
[1727760565913,0.0493189,63830.0,63823.0,0.313366]
[1727760566178,0.0493189,63830.0,63824.0,0.45404273]
[1727760566417,0.0493189,63830.0,63824.0,0.46031728]
[1727760566654,0.23677793,63832.0,63824.0,0.46031728]
[1727760566901,0.23677793,63832.0,63831.0,0.156663]
[1727760567150,0.23677793,63832.0,63831.0,0.55089245]
[1727760567408,0.23677793,63842.0,63839.0,0.156644]
[1727760567647,0.1581038,63840.0,63839.0,0.35697345]
[1727760568106,0.1581038,63840.0,63839.0,0.36693426]
[1727760569589,0.1631038,63840.0,63839.0,0.36793426]
[1727760569834,0.1581038,63840.0,63839.0,0.37293426]
[1727760570074,0.1661038,63840.0,63839.0,0.37293426]
[1727760570313,0.19466622,63840.0,63839.0,0.37293426]
[1727760570557,0.1771038,63840.0,63839.0,0.37293426]
[1727760570785,0.016646,63840.0,63839.0,0.37293426]
[1727760571011,0.020646,63840.0,63839.0,0.37293426]
[1727760571254,0.005646,63840.0,63839.0,0.37293426]
[1727760571484,0.011646,63840.0,63839.0,0.37293426]
[1727760572173,0.007646,63840.0,63839.0,0.37293426]
[1727760572614,0.010646,63840.0,63839.0,0.37293426]
[1727760573078,0.0352072,63840.0,63839.0,0.37293426]
[1727760578692,0.0352072,63840.0,63839.0,0.25380481]
[1727760578947,0.010646,63840.0,63839.0,0.37293426]
[1727760579867,0.010646,63840.0,63839.0,0.38284962]
[1727760582082,0.03520745,63840.0,63839.0,0.38284962]
[1727760583151,0.010646,63840.0,63839.0,0.38284962]
[1727760586178,0.03520761,63840.0,63839.0,0.38284962]
[1727760592300,0.010646,63840.0,63839.0,0.38284962]
[1727760595690,0.03520764,63840.0,63839.0,0.38284962]
[1727760600691,0.03520764,63840.0,63839.0,0.26372017]
[1727760600990,0.03520764,63840.0,63839.0,0.38284962]
[1727760602209,0.03520764,63840.0,63839.0,0.38294972]
[1727760602902,0.03520764,63840.0,63839.0,0.40311295]
[1727760603598,0.010646,63840.0,63839.0,0.40311295]
[1727760603822,0.010646,63840.0,63839.0,0.2839835]
[1727760604058,0.010646,63840.0,63839.0,0.40311295]
[1727760605974,0.010646,63840.0,63839.0,0.40305603]
[1727760606674,0.03520773,63840.0,63839.0,0.40305603]
[1727760610161,0.03520773,63840.0,63839.0,0.39705603]
[1727760611906,0.03520773,63840.0,63839.0,0.37694972]
[1727760612126,0.03520773,63840.0,63839.0,0.39706332]
[1727760612390,0.12861856,63840.0,63839.0,0.39706332]
[1727760612650,0.29646236,63840.0,63839.0,0.39706332]
[1727760614293,0.27190063,63840.0,63839.0,0.39706332]
[1727760614529,0.1784898,63840.0,63839.0,0.39706332]
[1727760615479,0.29525334,63840.0,63839.0,0.39706332]
[1727760615698,0.29525334,63840.0,63839.0,0.39707408]
[1727760616795,0.31981516,63840.0,63839.0,0.39707408]
[1727760618903,0.29525334,63840.0,63839.0,0.39707408]
[1727760620242,0.3198151,63840.0,63839.0,0.39707408]
[1727760620929,0.3168151,63840.0,63839.0,0.39707408]
[1727760621423,0.3108151,63840.0,63839.0,0.39707408]
[1727760621669,0.3108151,63840.0,63839.0,0.37694972]
[1727760621915,0.3108151,63840.0,63839.0,0.39706125]
[1727760623490,0.3128151,63840.0,63839.0,0.39806125]
[1727760623699,0.3108151,63840.0,63839.0,0.39806125]
[1727760624152,0.3118151,63840.0,63839.0,0.39706125]
[1727760624392,0.3118151,63840.0,63839.0,0.39906125]
[1727760625056,0.3118151,63840.0,63839.0,0.37894972]
[1727760625277,0.3118151,63840.0,63839.0,0.39906535]
[1727760626411,0.3118151,63840.0,63839.0,0.0420919]
[1727760626412,0.44840936,63840.0,63839.0,0.0420919]
[1727760626643,0.44840936,63840.0,63839.0,0.02197627]
[1727760626869,0.60505036,63840.0,63839.0,0.0021001]
[1727760627559,0.60505036,63840.0,63839.0,0.0001001]
[1727760627808,0.60405036,63840.0,63839.0,0.0001001]
[1727760628299,0.69105036,63840.0,63839.0,2.62e-06]
[1727760628516,0.68805036,63840.0,63839.0,2.62e-06]
[1727760628728,0.68605036,63840.0,63839.0,2.62e-06]
[1727760628955,0.6614886,63840.0,63839.0,2.62e-06]
[1727760629184,0.81793538,63840.0,63839.0,2.62e-06]
[1727760629400,0.6614886,63840.0,63839.0,2.62e-06]
[1727760629621,0.69405547,63840.0,63839.0,2.62e-06]
[1727760630088,0.0998,63835.0,63829.0,0.39344393]
[1727760630317,0.14055636,63833.0,63829.0,0.39344393]
[1727760630533,0.1564578,63832.0,63830.0,0.01987574]
[1727760630747,0.1678438,63831.0,63827.0,0.156671]
[1727760630966,0.1678438,63831.0,63828.0,0.15667]
[1727760630967,0.1564578,63830.0,63828.0,0.15667]
[1727760631183,0.28495394,63829.0,63828.0,0.15667]
[1727760631407,0.44140868,63829.0,63828.0,0.15667]
[1727760632317,0.3243016,63829.0,63828.0,0.27579945]
[1727760632534,0.1564578,63829.0,63828.0,0.27579945]
[1727760632742,0.22670695,63829.0,63828.0,0.27579945]
[1727760633826,0.22669858,63829.0,63828.0,0.27579945]
[1727760634278,0.22969858,63829.0,63828.0,0.27579945]
[1727760635363,0.1594578,63829.0,63828.0,0.27579945]
[1727760636292,0.20626928,63829.0,63828.0,0.27579945]
[1727760636507,0.20626783,63829.0,63828.0,0.27579945]
[1727760638040,0.23083479,63829.0,63828.0,0.27579945]
[1727760638267,0.20626783,63829.0,63828.0,0.27579945]
[1727760638484,0.23083486,63829.0,63828.0,0.27579945]
[1727760638911,0.23082411,63829.0,63828.0,0.27579945]
[1727760639123,0.23082411,63829.0,63828.0,0.15667]
[1727760639337,0.23082411,63829.0,63828.0,0.16660344]
[1727760640212,0.18402483,63829.0,63828.0,0.16660344]
[1727760645778,0.18402483,63829.0,63828.0,0.00993344]
[1727760646231,0.18402483,63829.0,63825.0,0.15750462]
[1727760646463,0.02756703,63829.0,63828.0,0.00995029]
[1727760646672,0.18402483,63829.0,63826.0,0.156675]
[1727760646887,0.1564578,63828.0,63827.0,0.00995142]
[1727760649497,0.1574578,63828.0,63827.0,0.01095142]
[1727760651737,0.58253001,63828.0,63827.0,0.01095142]
[1727760651952,0.65790394,63828.0,63827.0,0.01177442]
[1727760652161,0.63333499,63828.0,63827.0,0.01177442]
[1727760652381,0.63333499,63828.0,63827.0,0.001823]
[1727760652600,0.65690439,63828.0,63827.0,0.000823]
[1727760652815,0.60444329,63828.0,63827.0,0.000823]
[1727760653034,0.61644329,63828.0,63827.0,0.000823]
[1727760653246,0.72336158,63828.0,63827.0,0.000823]
[1727760653455,0.60424489,63828.0,63827.0,0.000823]
[1727760653672,0.62524489,63828.0,63827.0,0.000823]
[1727760654109,0.74215235,63828.0,63827.0,0.000823]
[1727760654334,0.62524489,63828.0,63827.0,0.000823]
[1727760658155,0.74215235,63828.0,63827.0,0.000823]
[1727760658362,0.74218134,63828.0,63827.0,0.000823]
[1727760658796,0.71761194,63828.0,63827.0,0.000823]
[1727760659699,0.60070224,63828.0,63827.0,0.000823]
[1727760660362,0.71761194,63828.0,63827.0,0.000823]
[1727760661029,0.8665676,63828.0,63827.0,0.000823]
[1727760661248,0.60070224,63828.0,63827.0,0.000823]
[1727760661700,0.71760302,63828.0,63827.0,0.000823]
[1727760661929,0.74217268,63828.0,63827.0,0.000823]
[1727760662176,0.62525431,63828.0,63827.0,0.000823]
[1727760664345,0.60068465,63828.0,63827.0,0.000823]
[1727760666521,0.62525185,63828.0,63827.0,0.000823]
[1727760666734,0.62533299,63828.0,63827.0,0.000823]
[1727760671357,0.76571738,63828.0,63827.0,0.000823]
[1727760671574,0.76611101,63828.0,63827.0,0.000823]
[1727760671793,0.62556096,63828.0,63827.0,0.000823]
[1727760672465,0.60099376,63828.0,63827.0,0.000823]
[1727760672689,0.6255611,63828.0,63827.0,0.000823]
[1727760676110,0.72367364,63828.0,63827.0,0.000823]
[1727760676578,0.72367304,63828.0,63827.0,0.000823]
[1727760676823,0.6255605,63828.0,63827.0,0.000823]
[1727760679003,0.60099316,63828.0,63827.0,0.000823]
[1727760679729,0.62556064,63828.0,63827.0,0.000823]
[1727760681447,0.62552721,63828.0,63827.0,0.000823]
[1727760684376,0.60095973,63828.0,63827.0,0.000823]
[1727760684839,0.50195973,63828.0,63827.0,0.000823]
[1727760685303,0.34528873,63828.0,63827.0,0.000823]
[1727760685525,0.50195973,63828.0,63827.0,0.000823]
[1727760686158,0.3341288,63828.0,63827.0,0.000823]
[1727760686418,0.50196714,63828.0,63827.0,0.000823]
[1727760687320,0.52653407,63828.0,63827.0,0.000823]
[1727760688410,0.36986307,63828.0,63827.0,0.000823]
[1727760688632,0.52653407,63828.0,63827.0,0.000823]
[1727760688848,0.50196714,63828.0,63827.0,0.000823]
[1727760690561,0.34529614,63828.0,63827.0,0.000823]
[1727760690790,0.50196714,63828.0,63827.0,0.000823]
[1727760692018,0.36986314,63828.0,63827.0,0.000823]
[1727760692495,0.52653414,63828.0,63827.0,0.000823]
[1727760694943,0.36986314,63828.0,63827.0,0.000823]
[1727760695162,0.52653414,63828.0,63827.0,0.000823]
[1727760695387,0.52653414,63828.0,63827.0,0.02532591]
[1727760695613,0.52653414,63828.0,63827.0,0.000823]
[1727760697273,0.68471098,63828.0,63827.0,0.000823]
[1727760697478,0.52803998,63828.0,63827.0,0.000823]
[1727760697924,0.52653414,63828.0,63827.0,0.000823]
[1727760699038,0.50196714,63828.0,63827.0,0.000823]
[1727760700773,0.52653423,63828.0,63827.0,0.000823]
[1727760700989,0.52661626,63828.0,63827.0,0.000823]
[1727760702622,0.67564184,63828.0,63827.0,0.000823]
[1727760703035,0.52661626,63828.0,63827.0,0.000823]
[1727760705932,0.52661029,63828.0,63827.0,0.000823]
[1727760707074,0.63691029,63828.0,63827.0,2.852e-05]
[1727760707313,0.94330093,63828.0,63827.0,2.852e-05]
[1727760707541,0.94330093,63828.0,63825.0,0.00082662]
[1727760707542,0.29080445,63826.0,63825.0,0.00082662]
[1727760707761,0.70757665,63826.0,63825.0,0.00082662]
[1727760708225,0.94265681,63826.0,63825.0,0.00082662]
[1727760709138,0.96722674,63826.0,63825.0,0.00082662]
[1727760709568,0.97722674,63826.0,63825.0,0.00082662]
[1727760709997,1.14067352,63826.0,63825.0,0.00082662]
[1727760710639,1.13749232,63826.0,63825.0,0.00082662]